Cogmind - Beta 15 @@@ ROGUE MODE // 2025.10.10 @ 23:31:38 Player: LameThyst Result: Destroyed by P-60 Hacker with Shock Rifle Performance ------------- Evolutions (0) 0 Regions Visited (3) 600 Robots Destroyed (39) 195 Value Destroyed (542) 542 Prototype IDs (25) 500 Alien Tech Used (0) 0 Bonus (366) 366 TOTAL SCORE: 2203 Bonus ------- Follower Combat Kills 66 Aligned with FarCom 300 Cogmind --------- Core Integrity 0/250 Matter 290/300 Energy 65/100 System Corruption 1% Temperature Cool (0) Movement Core (50) Location -10/Exiles Parts ------- > --- POWER (1) -------- (None) > --- PROPULSION (2) --- (None) > --- UTILITY (2) ------ (None) > --- WEAPON (2) ------- Light Assault Rifle Light Assault Rifle > --- INVENTORY (5) ---- Light Ion Engine High-capacity Matter Pod (200) Structural Scanner Particle Gun Mining Laser Peak State ------------ > --- POWER ------------ Ion Engine > --- PROPULSION ------- Light Treads Wheel > --- UTILITY ---------- Medium Storage Unit Seismic Detector > --- WEAPON ----------- Particle Gun Light Assault Rifle > --- INVENTORY -------- Ion Engine Light Ion Engine Light Treads High-capacity Matter Pod Structural Scanner Light Assault Rifle Mining Laser Deploy-a-Sentry Deploy-a-Sentry [Rating: 10] Favorites ----------- Power Ion Engine Engine Ion Engine Propulsion Light Treads Treads Light Treads Wheel Wheel Utility Seismic Detector Device Seismic Detector Storage Small Storage Unit Weapon Assault Rifle Energy Gun Small Laser Ballistic Gun Assault Rifle Launcher Grenade Launcher Build | -11 -10 -10 -10 ------- Run | Yrd Mat Min Exi Slots Evolved . | . . . . Power . | . . . . Propulsion . | . . . . Utility . | . . . . Weapon . | . . . . Parts Attached 23 | 9 8 3 3 Power 3 | 1 1 . 1 Engine 3 | 1 1 . 1 Core . | . . . . Reactor . | . . . . Propulsion 7 | 3 4 . . Treads 4 | 2 2 . . Leg . | . . . . Wheel 3 | 1 2 . . Hover . | . . . . Flight . | . . . . Utility 5 | 2 1 1 1 Device 2 | 1 1 . . Storage 3 | 1 . 1 1 Processor . | . . . . Hackware . | . . . . Protection . | . . . . Artifact . | . . . . Weapon 8 | 3 2 2 1 Energy Gun 3 | 2 . 1 . Energy Cannon . | . . . . Ballistic Gun 4 | 1 1 1 1 Ballistic Cannon . | . . . . Launcher 1 | . 1 . . Special Weapon . | . . . . Impact Weapon . | . . . . Slashing Weapon . | . . . . Piercing Weapon . | . . . . Special Melee Weapon . | . . . . Unidentified Prototypes . | . . . . Parts Lost 12 | . 4 2 6 Power 2 | . . . 2 Propulsion 5 | . 2 . 3 Utility 1 | . . . 1 Weapon 4 | . 2 2 . Highest Loss Streak 3 | . 1 1 3 To Critical Strikes . | . . . . Average Backups 7 | 5 7 9 6 Power 1 | . 1 1 1 Propulsion 1 | 2 1 1 . Utility 2 | . 2 3 2 Weapon 2 | . 3 2 2 Tool/Special . | . . . . Unused Backups 20 | 6 8 2 4 Power 1 | . 1 . . Propulsion 5 | 4 1 . . Utility 9 | 2 3 1 3 Weapon 5 | . 3 1 1 Tool/Special . | . . . . Average Slot Usage (%) 98 | . 99 99 94 Engine 13 | . 14 14 13 Treads 17 | . 17 14 19 Wheel 10 | . 10 14 7 Device 13 | . 14 14 9 Storage 14 | . 14 14 14 Energy Gun 13 | . 13 11 14 Ballistic Gun 14 | . 13 15 14 Peak Build Rating 10 | 8 7 9 10 Average Rating 7 | 6 6 8 9 On Entrance 5 | . 7 7 9 Naked Turns . | . . . . Heaviest Build 50 | 14 16 20 50 Greatest Support 40 | 40 40 10 40 Greatest Overweight (x) 4 | . 1 1 4 Average Overweight (x) . | . . 1 1 Largest Inventory Capacity 20 | 8 8 10 20 Average Capacity 9 | 7 8 9 15 Most Carried 10 | 8 8 10 10 Average Carried 7 | 5 7 9 8 Final Capacity 10 | 8 8 10 5 Final Carried 10 | 8 8 10 5 Class Distribution -------------------- 68% | Mutant 31% | Scavenger-Mutant Dominant Class ---------------- Mutant | -10/Materials Scavenger-Mutant | -10/Mines Scavenger-Mutant | -10/Exiles Resources | -11 -10 -10 -10 ----------- Run | Yrd Mat Min Exi Matter Collected 1103 | 383 594 111 15 Remotely . | . . . . Salvage Created 973 | 311 581 81 . Parts 84 | 25 50 9 . Haulers Intercepted 2 | . 2 . . Recyclers Shooed . | . . . . Parts Field Recycled . | . . . . Retrieved Matter . | . . . . Parts Self-Destructed . | . . . . Prevented . | . . . . Kills | -11 -10 -10 -10 ------- Run | Yrd Mat Min Exi Combat Hostiles Destroyed 19 | . 16 3 . Guns 13 | . 10 3 . AOE 6 | . 6 . . Classes Destroyed 8 | 3 5 . . Worker 3 | 3 . . . Builder 2 | . 2 . . Tunneler 9 | 9 . . . Hauler 2 | . 2 . . Recycler 2 | 1 1 . . Watcher 2 | . 2 . . Swarmer 11 | . 9 2 . Grunt 8 | . 7 1 . Best Kill Streak 5 | 5 4 2 . Combat Bots Only 3 | . 3 2 . Max Kills in Single Turn 3 | 1 3 1 . Gunslinging . | . . . . Exploded 2 | . 2 . . Melee . | . . . . Uniques/NPCs Destroyed . | . . . . Combat | -11 -10 -10 -10 -------- Run | Yrd Mat Min Exi Hostile Shots Fired 168 | . 71 20 77 Missed 49 | . 12 7 30 Hits 119 | . 59 13 47 Projectile 119 | . 59 13 47 Critical Strikes 4 | . 1 . 3 Damage Taken 1545 | . 704 131 710 Core 262 | . 89 7 166 Absorbed by Shields . | . . . . Core Remaining (%) 100 | 100 . . . Volleys Fired 104 | 31 63 10 . Largest 2 | 2 2 2 . Hottest 70 | 60 70 40 . Shots Fired 200 | 62 123 15 . Gun 192 | 62 115 15 . Cannon . | . . . . Launcher 8 | . 8 . . Special . | . . . . Kinetic 106 | 31 60 15 . Thermal 73 | 31 42 . . Explosive 8 | . 8 . . Electromagnetic 13 | . 13 . . Robot Hit Streak 15 | 8 15 5 . Robot Miss Streak 3 | 3 3 2 . Penetration Max . | . . . . Secondary Targets 1 | . 1 . . Max Gunslinging Chain 1 | . 1 . . Shots Hit Robots 127 | 37 80 10 . Core Hits 55 | 14 36 5 . Critical Kills 1 | . . 1 . Critical Parts Destroyed 1 | . 1 . . Critical Strikes 2 | . 1 1 . Destroy 2 | . 1 1 . Melee Attacks . | . . . . Impact . | . . . . Slashing . | . . . . Piercing . | . . . . Sneak Attacks . | . . . . Combat Hostiles . | . . . . Follow-up Attacks . | . . . . Damage Inflicted 1945 | 427 1420 98 . Guns 1475 | 427 950 98 . Cannons . | . . . . Explosions 470 | . 470 . . Melee . | . . . . Ramming . | . . . . Kinetic 774 | 172 504 98 . Thermal 551 | 255 296 . . Explosive 470 | . 470 . . Electromagnetic 150 | . 150 . . Impact . | . . . . Slashing . | . . . . Piercing . | . . . . Highest Corruption 1 | . . . 1 Average Corruption 1 | . . . 1 Corruption Purged . | . . . . Corruption Blocked . | . . . . Overload Shots . | . . . . Overflow Damage 8 | . 8 . . Projectiles . | . . . . Explosions 8 | . 8 . . Melee . | . . . . Knockbacks . | . . . . Impact . | . . . . Kinetic . | . . . . Secondary . | . . . . Self-Inflicted Damage 93 | . 93 . . Shots 4 | . 4 . . Rammed . | . . . . Targets Rammed . | . . . . Kicked . | . . . . Crushed . | . . . . Highest Temperature 72 | . 72 18 . Average Temperature 27 | . 28 11 . Received Heat Transfer 360 | . 258 36 66 Siege Activations . | . . . . Martial Activations . | . . . . Shielding Activations . | . . . . Robots Disrupted . | . . . . Combat Hostiles . | . . . . Robots Corrupted . | . . . . Combat Hostiles . | . . . . Parts Fried . | . . . . Impact Corruptions . | . . . . Robots Melted . | . . . . Combat Hostiles . | . . . . Parts Melted 3 | 2 1 . . Heat Transferred 1250 | 575 675 . . Parts Sabotaged . | . . . . Parts Stolen . | . . . . Parts Stripped . | . . . . Power Chain Reactions . | . . . . Alert | -11 -10 -10 -10 ------- Run | Yrd Mat Min Exi Maximum Alert Level 1 | . 1 . . Low Security (%) 75 | 100 58 100 . Level 1 24 | . 41 . . Level 2 . | . . . . Level 3 . | . . . . Level 4 . | . . . . Level 5 . | . . . . High Security . | . . . . Max Security . | . . . . Peak Influence 264 | 10 264 123 . Initial 70 | . . 70 . Average 99 | 1 147 48 . Influence Increases 803 | 65 591 123 24 Destroy 0b10 Robot/C 420 | . 320 80 20 Destroy 0b10 Robot/NC 100 | 65 35 . . Destroy Leader 98 | . 78 20 . Allied During Kill 12 | . . 8 4 Successful Hack 4 | . 4 . . Disable Machine 15 | . 15 . . Destroy Structure 49 | . 49 . . Lose Combat Pursuer 105 | . 90 15 . Influence Decreases 803 | 65 411 303 24 Entered New Map 110 | . . 110 . Time Decay 633 | 65 371 173 24 Lost Part 60 | . 40 20 . Squads Dispatched 3 | . 3 . . Investigation 1 | . 1 . . Extermination . | . . . . Reinforcement 2 | . 2 . . Assault . | . . . . Garrison . | . . . . Intercept . | . . . . Searches Triggered . | . . . . Construction Impeded . | . . . . Haulers Reinforced . | . . . . Active Scanning Responses . | . . . . Cargo Convoy Interrupts . | . . . . Stealth | -11 -10 -10 -10 --------- Run | Yrd Mat Min Exi Distress Signals 2 | . 2 . . Communications Jammed . | . . . . Distress Signals . | . . . . Times Spotted 42 | . 29 5 8 Peak Tracking Total 8 | . 8 3 7 Tactical Retreats 5 | . 4 1 . Traps | -11 -10 -10 -10 ------- Run | Yrd Mat Min Exi Traps Triggered 1 | . 1 . . Indirectly . | . . . . Trap Hack Attempts . | . . . . Triggered . | . . . . Disarmed . | . . . . Reprogrammed . | . . . . Reused . | . . . . Traps Extracted . | . . . . Installed . | . . . . Triggered . | . . . . Machines | -11 -10 -10 -10 ---------- Run | Yrd Mat Min Exi Machines Disabled 1 | . 1 . . Max in Single Turn 1 | . 1 . . Machines Repaired . | . . . . Machines Dismantled . | . . . . Machines Sabotaged . | . . . . Overloaded Fab Kills . | . . . . Hacking | -11 -10 -10 -10 --------- Run | Yrd Mat Min Exi Machines Accessed 11 | . 9 . 2 Terminals 7 | . 7 . . Fabricators . | . . . . Repair Stations 1 | . 1 . . Recycling Units 1 | . 1 . . Scanalyzers . | . . . . Garrison Access . | . . . . Total Hacks 26 | . 24 . 2 Successful 14 | . 12 . 2 Failed 12 | . 12 . . Catastrophic . | . . . . Database Lockouts . | . . . . Manual 22 | . 21 . 1 Terminals 20 | . 20 . . Fabricators . | . . . . Repair Stations 1 | . 1 . . Recycling Units 3 | . 3 . . Scanalyzers . | . . . . Garrison Access . | . . . . Terminal Hacks 4 | . 2 . 2 Record 1 | . . . 1 Prototype ID Bank 1 | . 1 . . Locate Traps 1 | . 1 . . Proto ID Catalog 1 | . . . 1 Fabricator Hacks . | . . . . Repair Station Hacks . | . . . . Recycling Unit Hacks . | . . . . Scanalyzer . | . . . . Garrison Access Hacks . | . . . . Unauthorized Hacks 10 | . 10 . . Terminals 8 | . 8 . . Botnet 2 | . 2 . . Skim 6 | . 6 . . Fabricators . | . . . . Repair Stations . | . . . . Recycling Units 2 | . 2 . . Reject 1 | . 1 . . Recyclers 1 | . 1 . . Scanalyzers . | . . . . Garrison Access . | . . . . Data Cores Recovered . | . . . . Used . | . . . . Hacking Detections 9 | . 9 . . Full Trace Events 1 | . 1 . . Feedback Events . | . . . . Feedback Blocked . | . . . . Robot Schematics Acquired . | . . . . Robots Built . | . . . . Authchips . | . . . . Time . | . . . . Total Robot Build Rating . | . . . . Part Schematics Acquired . | . . . . Parts Built . | . . . . Authchips . | . . . . Time . | . . . . Total Part Build Rating . | . . . . Parts Repaired . | . . . . Time . | . . . . Parts Recycled . | . . . . Recycled Matter . | . . . . Retrieved Matter . | . . . . Retrieved Components . | . . . . Parts Scanalyzed . | . . . . Part Schematics Acquired . | . . . . Parts Damaged . | . . . . Bothacking | -11 -10 -10 -10 ------------ Run | Yrd Mat Min Exi Used RIF Installer . | . . . . Robots Hacked . | . . . . Non-combat . | . . . . Combat . | . . . . Robot Hacks Applied . | . . . . Relay Couplers Released . | . . . . Fabnet Peak Effective % . | . . . . Robots Rewired . | . . . . Allies Hacked . | . . . . Hacks Repelled . | . . . . Allies | -11 -10 -10 -10 -------- Run | Yrd Mat Min Exi Total Allies 3 | . . 3 . Largest Group 3 | . . 3 3 Highest-Rated Group 40 | . . 40 40 Highest-Rated Ally 16 | . . 16 16 Total Orders . | . . . . Ally Attacks 13 | . . 2 11 Total Damage 248 | . . 33 215 Kills 2 | . . 1 1 Allies Corrupted . | . . . . Allies Melted . | . . . . Turrets Deployed 2 | . . . 2 Intel | -11 -10 -10 -10 ------- Run | Yrd Mat Min Exi Active Infowar (turns) 2439 | 252 1299 492 396 Seismic 2439 | 252 1299 492 396 Robot Analysis Total . | . . . . Derelict Logs Recovered 1 | . . 1 . Drone Launches . | . . . . Drone Recoveries . | . . . . Exploration | -11 -10 -10 -10 ------------- Run | Yrd Mat Min Exi Turns Passed 2723 | 371 1299 492 561 Spaces Moved 1858 | 247 770 445 396 Core 6 | 6 . . . Treads 451 | 6 348 . 97 Legs . | . . . . Wheels 1401 | 235 422 445 299 Hover . | . . . . Flight . | . . . . Fastest Speed 50 | 50 95 95 95 Average Speed 117 | 100 125 95 135 Slowest Speed 320 | 160 160 95 320 Overloaded Moves . | . . . . Propulsion Burnouts . | . . . . Robots Hopped . | . . . . Potential Cave-ins . | . . . . Cave-ins Triggered . | . . . . Exploration Rate (%) 64 | 9 99 78 71 Regions Visited 3 Branch Regions 2 Pre-discovered Areas 1 | . . . 1 Known Exits Taken . | . . . . Unknown Exits Taken 3 | 1 1 1 . Scrap Searched 3 | . . 3 . Spaces Dug . | . . . . Terrain Destroyed 56 | . 56 . . Melee . | . . . . Projectile . | . . . . AOE 56 | . 56 . . Terrain Rammed . | . . . . Walls Destroyed . | . . . . Machines Disabled . | . . . . Actions | -11 -10 -10 -10 --------- Run | Yrd Mat Min Exi Total 2217 | 306 983 503 425 Wait 152 | . 100 37 15 Move 1855 | 246 769 444 396 Hop . | . . . . Pick Up 37 | 14 16 4 3 Fast Attach 8 | 7 . 1 . Attach 7 | . 4 1 2 Detach . | . . . . Swap 23 | 2 17 2 2 Drop 31 | 6 14 4 7 Fire 104 | 31 63 10 . Melee . | . . . . Ram . | . . . . Kick . | . . . . Crush . | . . . . Escape Stasis . | . . . . Rewire . | . . . . Trap . | . . . . Miscellaneous . | . . . . Route ------- -11/Scrapyard -10/Materials (discovered 6 exits: [*Mat x3] / [*Min x2] / [*Sub]) -10/Mines (discovered 2 exits: [*Mat] / *Exi) -10/Exiles (discovered 1 exit: [*Min]) History --------- Turn | Location | Event 3 | -11/Scrapyard | Discovered new exit (range 15) 372 | -11/Scrapyard | Entered Materials 388 | -10/Materials | Build established: Mutant 597 | -10/Materials | Discovered new exit (range 10) 797 | -10/Materials | Discovered new exit (range 15) 912 | -10/Materials | Discovered new exit (range 3) 1255 | -10/Materials | Discovered new exit (range 13) 1319 | -10/Materials | Discovered new exit (range 15) 1428 | -10/Materials | Discovered new exit (range 12) 1671 | -10/Materials | Entered Mines 1684 | -10/Mines | Met a Derelict bent on vengeance 1744 | -10/Mines | Assisted by bots powering up and referring to "LRC-V3" 1906 | -10/Mines | Discovered new exit (range 14) 2001 | -10/Mines | Build established: Scavenger-Mutant 2010 | -10/Mines | Found a Scrap Suit stashed away for nefarious purposes 2013 | -10/Mines | Found Scrap Suit 2138 | -10/Mines | Deemed a non-threat by the Exiles lab entrance 2139 | -10/Mines | Discovered new exit (range 5) 2163 | -10/Mines | Entered Exiles 2163 | -10/Exiles | Accompanied by 3 allies 2180 | -10/Exiles | Discovered new exit (range 14) 2198 | -10/Exiles | Met 8R-AWN 2213 | -10/Exiles | Met EX-HEX 2246 | -10/Exiles | Met EX-BIN 2259 | -10/Exiles | Aligned with FarCom system 2260 | -10/Exiles | Given EX-Vault access code 2282 | -10/Exiles | Opened EX-Vault 2289 | -10/Exiles | Found Deploy-a-Sentry 2291 | -10/Exiles | Found Deploy-a-Sentry 2293 | -10/Exiles | Found Deploy-a-Sentry 2317 | -10/Exiles | Warned to stay clear of 0b10 Research branches 2325 | -10/Exiles | Exiles lab attacked by MAIN.C 2354 | -10/Exiles | Learned location of Zion (-6) 2444 | -10/Exiles | Core integrity fell below 50% 2463 | -10/Exiles | Lost 3 allies 2532 | -10/Exiles | Core integrity fell below 20% 2558 | -10/Exiles | DAS Turret deployed 2561 | -10/Exiles | DAS Turret deployed 2724 | -10/Exiles | Destroyed by P-60 Hacker with Shock Rifle Last Messages --------------- 02558_ H-55 Commando knocked back. 02559_ Penetrated by Slug. 02559_ Seismic Detector destroyed. 02559_ H-55 Commando suffers critical hit (Blast). 02559_ Destroyed Gauss Rifle. 02559_ H-55 Commando knocked back. 02560_ Dropped Deploy-a-Sentry. 02561_ DAS Turret deployed. 02561_ Destroyed Carbon-fiber Leg. 02561_ H-55 Commando knocked back. 02561_ H-55 Commando destroyed. 02685_ Acquired 7 matter. 02687_ Acquired 8 matter. 02703_ Lgt. Treads destroyed. 02706_ Ion Engine destroyed. 02722_ Lgt. Treads destroyed. 02722_ Dropped Deploy-a-Sentry. 02723_ Dropped Hcp. Storage Unit. 02724_ Machine disabled. Map ----- +----------------------------------------------------+ | ?????????????????????????????????????????????????? | | ?????????????????????????????????????????????????? | | ?????????????????????????????????????????????????? | | ?????????????????????????????????????????????????? | | ?????????????????????????????????????????????????? | | ?????????????????????????????????????????????????? | | ?????#???????????????????????????????????????????? | | ?????# ??????????????????????????????????????????? | | ?????# ?????????????????????????????????????????? | | ?????# ???????????????????????????????????????? | | ?????# ??????????????????????????????????????? | | ?????# ??????????????????????????????????????? | | ??????# ?????????????????????????????????????? | | ??????# ?????????????????????????????????????? | | ???????# ?????????????#######????????????????? | | ???????# #######??????#!!! "#????????????????? | | ???????# #""##?????# "#????????????????? | | ????????# #?????# "#????????????????? | | ????????##" ##???## ""#????????????####? | | ????????#"" #####" ""#???????????? """ | | ????????#### ##" ""#????????????" """ | | ???????????## #"" #??????????????" | | ????????????#"## t #?????????????"" | | ????????????##?####t ##????????????"" " | | ??????????????????### ! "#???????????? "" | | ???????????????#####" @ ###???????????" "? | | ????????????# !!""""" % ##??????????# #? | | ????????????#! "###" ######???### ## | | ????????????#! "#?##" p """#####X# #" | | ????????????#! ##??#" % " | | ????????????# !""""""###???#"# " | | ????????????#########??????#### | | ??????????????????????????????### | | ????????????????????????????????### | | ??????????????????????????????????## | | ???????????????????????????????????## | | ????????????????????????????????????##" | | ?????????????????????????????????????#"" | | ????????????????????????????????????##" | | ????????????????????????????????????#"" | | ???????????????????????????????????## | | ???????????????????????????????????#" | | ???????????????????????????????????#"" | | ???????????????????????????????????#" | | ???????????????????????????????????#"" | | ???????????????????????????????????#" | | ???????????????????????????????????##"" | | ????????????????????????????????????#""" | | ????????????????????????????????????## % | | ?????????????????????????????????????#" | +----------------------------------------------------+ Best States ------------- Heat Dissipation 25 Energy Generation 10 Energy Capacity 250 Matter Stores 300 Matter Capacity 300 Sight Range 16 Terrain Scan Density 10 Evasion (%) 41 Recoil Reduction 2 Item Schematics ----------------- None Robot Schematics ------------------ None Fabricated ------------ Nothing Repaired ---------- Nothing Alien Tech Used ----------------- None Achievements -------------- None Challenges ------------ None Game ------ Seed AblativeLightPendant Manual? 0 Play Time 00:26:42 Cumulative 131.4 hours Start 2025.10.10 @ 23:07:13 End 2025.10.10 @ 23:31:38 Sessions 1 Manual Loads 0 Difficulty Rogue Special Mode None Game No. 146 Rogue 146 Adventurer 0 Explorer 0 Win Type - Total 0 Types 0/0/0/0/0/0/0/0/0/0 Lore% 62 Gallery% 46 Achievement% 37 Wizard Run 0 Options --------- Layout 1 ASCII 0 Keyboard 0 Movement Mouse Keybinds 0 Fullscreen 2 Font 48/Smallcaps Map View 50x35 Zoom Use 0% Tactical HUD 1 Map Filters NONE Filters NONE Steam 0 RUN: 7ebaa53c-edeb-4f1b-ba09-c99b7ee1c87e